Cogmind - Beta 16 --- EXPLORER MODE // 2025.12.02 @ 13:36:38 Player: K.K.Y. Result: Self-destructed Performance ------------- Evolutions (4) 2000 Regions Visited (6) 1200 Robots Destroyed (59) 295 Value Destroyed (1511) 1511 Prototype IDs (15) 300 Alien Tech Used (0) 0 Bonus (-1155) -1155 TOTAL SCORE: 4151 Bonus ------- Follower Combat Kills 496 Delivered SUBCON Basin 2000 Friendly Fire -3651 Cogmind --------- Core Integrity 239/850 Matter 291/300 Energy 100/100 System Corruption 13% Temperature Cool (0) Movement Hovering (600) Ox9 Location -6/Factory Parts ------- > --- POWER (2) -------- (None) > --- PROPULSION (4) --- Gravmag System > --- UTILITY (7) ------ Huge Storage Unit Machine Analyzer Tech Extrapolator > --- WEAPON (3) ------- Heavy Flail > --- INVENTORY (25) --- Light Deuterium Engine Improved Deuterium Engine Light Angular Momentum Engine Medium Treads Advanced Heat Sink Advanced Heat Sink Improved Cooling System High-capacity Storage Unit Huge Storage Unit Improved Sensor Array Improved Signal Interpreter Improved Terrain Scan Processor Hardened Medium Armor Plating System Shield Authchip [R/Combat] Authchip [R/Combat] Shock Rifle Lightning Gun Plasma Rifle Heavy Ion Cannon Heavy Ion Cannon Gauss Rifle Flak Gun Coil Gun Remote Datajack Peak State ------------ > --- POWER ------------ Improved Ion Engine Nuclear Core > --- PROPULSION ------- Light Treads Light Treads Light Treads Advanced Treads > --- UTILITY ---------- Scrap Suit High-capacity Storage Unit Machine Analyzer Tower Shield Tech Extrapolator > --- WEAPON ----------- High-powered Shotgun Heavy Battle Rifle Improved Datajack > --- INVENTORY -------- Fission Core Medium Treads Improved Cooling System Improved Sensor Array Improved Terrain Scan Processor Hardened Medium Armor Plating System Shield Authchip [R/Combat] Authchip [R/Combat] Lightning Gun Heavy Ion Cannon Heavy Ion Cannon Coil Gun Remote Datajack Heavy Flail Makeshift Sword [Rating: 65] Favorites ----------- Power Improved Ion Engine Engine Improved Ion Engine Power Core Nuclear Core Propulsion Light Treads Treads Light Treads Wheel Wheel Hover Unit Hover Unit Utility V3-11A's Pendant Device V3-11A's Pendant Storage High-capacity Storage Unit Processor Tech Extrapolator Protection Core Shielding Weapon Beam Cannon Energy Gun Heavy Laser Energy Cannon Beam Cannon Ballistic Gun Heavy Battle Rifle Impact Weapon Hammer Slashing Weapon Makeshift Sword Special Melee Weapon Datajack Build | -11 -10 -10 -10 -8 -8 -6 ------- Run | Yrd Mat Min Sub Rec Scr Fac Slots Evolved 9 | . 1 . . . . 8 Power 1 | . . . . . . 1 Propulsion 2 | . 1 . . . . 1 Utility 5 | . . . . . . 5 Weapon 1 | . . . . . . 1 Parts Attached 44 | 10 7 1 7 5 . 14 Power 7 | 1 . . 1 2 . 3 Engine 4 | 1 . . 1 2 . . Core 3 | . . . . . . 3 Reactor . | . . . . . . . Propulsion 13 | 4 3 1 1 1 . 3 Treads 5 | 2 . . 1 1 . 1 Leg . | . . . . . . . Wheel 3 | 2 1 . . . . . Hover 5 | . 2 1 . . . 2 Flight . | . . . . . . . Utility 14 | 3 2 . 2 1 . 6 Device 4 | . . . 1 . . 3 Storage 4 | 1 1 . 1 . . 1 Processor 2 | . . . . 1 . 1 Hackware . | . . . . . . . Protection 4 | 2 1 . . . . 1 Artifact . | . . . . . . . Weapon 10 | 2 2 . 3 1 . 2 Energy Gun . | . . . . . . . Energy Cannon 1 | . 1 . . . . . Ballistic Gun 4 | 2 . . 1 . . 1 Ballistic Cannon . | . . . . . . . Launcher . | . . . . . . . Special Weapon . | . . . . . . . Impact Weapon 2 | . . . 1 . . 1 Slashing Weapon 1 | . . . 1 . . . Piercing Weapon . | . . . . . . . Special Melee Weapon 2 | . 1 . . 1 . . Unidentified Prototypes 1 | . . . 1 . . . Parts Lost 19 | . 1 . 2 . . 16 Power 3 | . . . . . . 3 Propulsion 8 | . 1 . 2 . . 5 Utility 2 | . . . . . . 2 Weapon 6 | . . . . . . 6 Highest Loss Streak 3 | . 1 . 1 . . 3 To Critical Strikes . | . . . . . . . Average Backups 10 | 4 7 7 8 5 15 20 Power . | . . . . . 1 1 Propulsion . | 1 2 2 . . . . Utility 5 | 2 3 4 5 4 8 10 Weapon 3 | . 1 1 2 . 5 6 Tool/Special . | . . . . . . . Unused Backups 39 | . 4 1 11 . 1 22 Power 3 | . . . . . . 3 Propulsion 2 | . 1 . . . . 1 Utility 18 | . 2 . 6 . 1 9 Weapon 15 | . 1 1 5 . . 8 Tool/Special 1 | . . . . . . 1 Average Slot Usage (%) 87 | . 82 89 95 98 87 56 Engine 10 | . 12 12 12 12 12 1 Treads 22 | . . . 29 37 37 9 Hover 5 | . 17 27 3 . . 2 Device 7 | . . . 11 3 . 5 Storage 10 | . 12 12 12 12 12 5 Processor 3 | . . . . 8 12 10 Protection 2 | . 12 11 . . . 1 Energy Cannon 6 | . 6 12 9 . . . Ballistic Gun 3 | . 6 . 2 6 . 4 Impact Weapon 4 | . . . 9 . . 1 Slashing Weapon 2 | . . . 2 10 . 2 Special Melee Weapon 3 | . 11 12 . 5 12 1 Peak Build Rating 65 | 8 9 9 37 37 23 65 Average Rating 22 | 6 7 8 18 26 22 48 On Entrance 15 | . 8 8 9 37 20 23 Avg Prop Armor Cover (%) . | . . . . . . . Naked Turns . | . . . . . . . Heaviest Build 109 | 15 15 15 54 54 48 109 Greatest Support 82 | 40 30 18 60 60 60 82 Greatest Overweight (x) 34 | . 2 1 2 . . 34 Average Overweight (x) . | . 1 . . . . 3 Largest Inventory Capacity 25 | 8 15 8 20 20 20 25 Average Capacity 16 | 6 8 8 15 20 20 23 Most Carried 25 | 8 9 8 20 20 20 25 Average Carried 13 | 4 7 7 13 12 18 20 Final Capacity 25 | 8 8 8 20 20 20 25 Final Carried 25 | 8 8 8 20 13 20 25 Scrap Suit Usage (%) 15 | . . . . . . 97 Parts Cannibalized 6 | . . . . . . 6 Class Distribution -------------------- 82% | Hacker-Mutant 15% | Commander-Mutant Dominant Class ---------------- Hacker-Mutant | -10/Materials Hacker-Mutant | -10/Mines Hacker-Mutant | -10/Subcaves Hacker-Mutant | -8/Recycling Commander-Mutant | -8/Scraptown Hacker-Mutant | -6/Factory Resources | -11 -10 -10 -10 -8 -8 -6 ----------- Run | Yrd Mat Min Sub Rec Scr Fac Matter Collected 1413 | 354 368 . 150 60 . 481 Remotely . | . . . . . . . Salvage Created 2665 | 158 540 . 652 396 . 919 Parts 124 | 14 33 . 24 14 . 39 Haulers Intercepted 2 | . 2 . . . . . Recyclers Shooed 4 | . 3 . . . . 1 Parts Field Recycled . | . . . . . . . Retrieved Matter . | . . . . . . . Parts Self-Destructed . | . . . . . . . Prevented . | . . . . . . . Parts Restored . | . . . . . . . Kills | -11 -10 -10 -10 -8 -8 -6 ------- Run | Yrd Mat Min Sub Rec Scr Fac Combat Hostiles Destroyed 31 | . 9 . 2 4 . 16 Melee 8 | . . . 2 4 . 2 Guns 22 | . 9 . . . . 13 Classes Destroyed 14 | 2 5 . 3 1 . 3 Worker 1 | . 1 . . . . . Tunneler 4 | 4 . . . . . . Hauler 2 | . 2 . . . . . Recycler 4 | 1 1 . . 1 . 1 Mechanic 1 | . . . . . . 1 Watcher 3 | . 2 . . . . 1 Swarmer 6 | . 4 . 2 . . . Grunt 15 | . 5 . . 2 . 8 Sentry 2 | . . . . 2 . . Hunter 3 | . . . . . . 3 Programmer 5 | . . . . . . 5 Artisan 1 | . . . 1 . . . Cobbler 1 | . . . 1 . . . Subdweller 13 | . . . 13 . . . Best Kill Streak 5 | 3 3 . 2 3 . 5 Combat Bots Only 4 | . 2 . 2 3 . 4 Max Kills in Single Turn 2 | 1 2 . 1 1 . 1 Gunslinging . | . . . . . . . Exploded . | . . . . . . . Melee 1 | . . . 1 1 . 1 Uniques/NPCs Destroyed . | . . . . . . . Combat | -11 -10 -10 -10 -8 -8 -6 -------- Run | Yrd Mat Min Sub Rec Scr Fac Hostile Shots Fired 499 | . 59 . 66 17 . 357 Missed 158 | . 23 . 33 4 . 98 Hits 341 | . 36 . 33 13 . 259 Projectile 341 | . 36 . 33 13 . 259 AOE 3 | . . . . . . 3 Critical Strikes 7 | . . . . . . 7 Part Disruptions 1 | . . . . . . 1 Damage Taken 3351 | . 261 . 284 250 . 2556 Core 783 | . 75 . 58 39 . 611 Absorbed by Shields . | . . . . . . . Redirected to Shielding 14 | . 14 . . . . . Ignored by Resistances 1998 | . 167 . 130 145 . 1556 Regen/Repaired (Parts) 54 | . . . . . . 54 Core Remaining (%) 65 | 100 . . . . 31 . Volleys Fired 186 | 9 90 . 16 . . 71 Largest 3 | 2 2 . 1 . . 3 Hottest 127 | 40 40 . 60 . . 127 Shots Fired 240 | 18 91 . 16 . . 115 Gun 224 | 18 91 . . . . 115 Cannon 16 | . . . 16 . . . Launcher . | . . . . . . . Special . | . . . . . . . Kinetic 187 | 18 91 . . . . 78 Thermal 53 | . . . 16 . . 37 Explosive . | . . . . . . . Electromagnetic . | . . . . . . . Robot Hit Streak 24 | 5 19 . 12 . . 24 Robot Miss Streak 3 | 2 3 . 1 . . 1 Penetration Max . | . . . . . . . Secondary Targets 2 | . . . . . . 2 Max Gunslinging Chain 1 | . . . . . . 1 Shots Hit Robots 324 | 12 92 . 68 36 . 116 Core Hits 94 | 6 25 . 7 7 . 49 Critical Kills 1 | . . . . . . 1 Critical Parts Destroyed 10 | . 1 . 6 . . 3 Critical Strikes 15 | . 1 . 7 2 . 5 Destroy 4 | . 1 . . . . 3 Smash 8 | . . . 7 . . 1 Sever 3 | . . . . 2 . 1 Melee Attacks 159 | . 13 . 98 36 . 12 Impact 96 | . . . 94 . . 2 Slashing 32 | . . . 3 19 . 10 Piercing . | . . . . . . . Sneak Attacks 82 | . 13 . 52 17 . . Combat Hostiles . | . . . . . . . Follow-up Attacks . | . . . . . . . Damage Inflicted 7918 | 165 1013 . 2988 1080 . 2672 Guns 3397 | 165 1013 . . . . 2219 Cannons 194 | . . . 194 . . . Explosions . | . . . . . . . Melee 4327 | . . . 2794 1080 . 453 Ramming . | . . . . . . . Kinetic 2696 | 165 1013 . . . . 1518 Thermal 895 | . . . 194 . . 701 Explosive . | . . . . . . . Electromagnetic . | . . . . . . . Impact 2675 | . . . 2576 . . 99 Slashing 1652 | . . . 218 1080 . 354 Piercing . | . . . . . . . Highest Corruption 13 | . . . . . . 13 Average Corruption 6 | . . . . . . 6 Corruption Purged . | . . . . . . . Corruption Blocked . | . . . . . . . Effects 66 | . . . . . . 66 Message Errors 7 | . . . . . . 7 Matter Fused 18 | . . . . . . 18 Heat Flow Errors 8 | . . . . . . 8 Energy Discharges 6 | . . . . . . 6 Parts Rejected 1 | . . . . . . 1 Parts Fused 2 | . . . . . . 2 Data Loss (minor) 12 | . . . . . . 12 Data Loss (major) 5 | . . . . . . 5 Misfires 2 | . . . . . . 2 Alerts 4 | . . . . . . 4 Weapon Failures 1 | . . . . . . 1 Overload Shots . | . . . . . . . Overflow Damage 938 | . . . 559 282 . 97 Projectiles 40 | . . . 6 . . 34 Explosions . | . . . . . . . Melee 898 | . . . 553 282 . 63 Knockbacks 32 | . . . 30 . . 2 Impact 29 | . . . 28 . . 1 Kinetic . | . . . . . . . Secondary 3 | . . . 2 . . 1 Self-Inflicted Damage . | . . . . . . . Shots . | . . . . . . . Rammed 2 | . . . . . . 2 Targets Rammed 2 | . . . . . . 2 Kicked . | . . . . . . . Crushed . | . . . . . . . Highest Temperature 395 | . 5 . 14 . . 395 Average Temperature 96 | . 3 . 5 . . 107 Received Heat Transfer 1179 | . 228 . 147 90 . 714 Siege Activations . | . . . . . . . Martial Activations . | . . . . . . . Shielding Activations . | . . . . . . . Robots Disrupted . | . . . . . . . Combat Hostiles . | . . . . . . . Robots Corrupted 9 | . . . 7 . . 2 Combat Hostiles 1 | . . . . . . 1 Parts Fried 12 | . . . 10 . . 2 Impact Corruptions 20 | . . . 18 . . 2 Robots Melted . | . . . . . . . Combat Hostiles . | . . . . . . . Parts Melted 1 | . . . . . . 1 Heat Transferred 1628 | . . . 407 . . 1221 Parts Sabotaged . | . . . . . . . Parts Stolen . | . . . . . . . Parts Stripped . | . . . . . . . Power Chain Reactions . | . . . . . . . Alert | -11 -10 -10 -10 -8 -8 -6 ------- Run | Yrd Mat Min Sub Rec Scr Fac Maximum Alert Level . | . . . . . . . Low Security (%) 100 | 100 100 100 . 100 . 100 Level 1 . | . . . . . . . Level 2 . | . . . . . . . Level 3 . | . . . . . . . Level 4 . | . . . . . . . Level 5 . | . . . . . . . High Security . | . . . . . . . Max Security . | . . . . . . . Peak Influence 121 | 10 50 7 . 121 . 118 Initial . | . . . . . . . Average 7 | 1 3 . . 12 . 10 Influence Increases 1603 | 25 262 7 298 317 . 694 Destroy 0b10 Robot/C 980 | . 180 . 200 180 . 420 Destroy 0b10 Robot/NC 105 | 25 30 . . 35 . 15 Destroy Leader 200 | . 48 . 10 . . 142 Allied During Kill 19 | . . . 13 . . 6 Successful Hack 67 | . . 7 . 38 . 22 Select Force Hacks 30 | . . . . . . 30 Disable Machine 4 | . 4 . . . . . Destroy Structure 108 | . . . . 64 . 44 Lose Combat Pursuer 90 | . . . 75 . . 15 Influence Decreases 1603 | 25 262 7 298 317 . 694 Time Decay 1425 | 25 252 7 209 317 . 615 Lost Part 78 | . 10 . 10 . . 58 Lost Ally 100 | . . . 79 . . 21 Squads Dispatched 10 | . . . . . . 10 Investigation 3 | . . . . . . 3 Extermination 5 | . . . . . . 5 Reinforcement 2 | . . . . . . 2 Assault . | . . . . . . . Garrison . | . . . . . . . Intercept . | . . . . . . . Searches Triggered . | . . . . . . . Construction Impeded 2 | . . . . . . 2 Haulers Reinforced . | . . . . . . . Active Scanning Responses . | . . . . . . . Cargo Convoy Interrupts 1 | . . . . . . 1 Stealth | -11 -10 -10 -10 -8 -8 -6 --------- Run | Yrd Mat Min Sub Rec Scr Fac Distress Signals 3 | . 1 . . . . 2 Communications Jammed . | . . . . . . . Distress Signals . | . . . . . . . Times Spotted 88 | . 16 . 31 14 . 27 Peak Tracking Total 6 | . 6 . 3 4 . 4 Tactical Retreats 4 | . . . 3 . . 1 Traps | -11 -10 -10 -10 -8 -8 -6 ------- Run | Yrd Mat Min Sub Rec Scr Fac Traps Triggered 4 | . 2 . 2 . . . Indirectly . | . . . . . . . Trap Hack Attempts 1 | . 1 . . . . . Triggered . | . . . . . . . Disarmed . | . . . . . . . Reprogrammed . | . . . . . . . Reused . | . . . . . . . Traps Extracted . | . . . . . . . Installed . | . . . . . . . Triggered . | . . . . . . . Machines | -11 -10 -10 -10 -8 -8 -6 ---------- Run | Yrd Mat Min Sub Rec Scr Fac Machines Disabled 4 | . 2 . 2 . . . Max in Single Turn 1 | . 1 . 1 . . . Machines Repaired . | . . . . . . . Machines Dismantled . | . . . . . . . Machines Sabotaged . | . . . . . . . Overloaded Fab Kills . | . . . . . . . Hacking | -11 -10 -10 -10 -8 -8 -6 --------- Run | Yrd Mat Min Sub Rec Scr Fac Machines Accessed 25 | . 1 1 4 14 1 4 Terminals 9 | . . 1 . 6 . 2 Fabricators . | . . . . . . . Repair Stations . | . . . . . . . Recycling Units 8 | . 1 . . 6 . 1 Scanalyzers 1 | . . . . . . 1 Garrison Access . | . . . . . . . Total Hacks 98 | . 5 5 7 64 9 8 Successful 84 | . 2 3 7 58 9 5 Failed 14 | . 3 2 . 6 . 3 Catastrophic 1 | . . . . . . 1 Database Lockouts . | . . . . . . . Manual 46 | . 5 5 . 29 . 7 Terminals 23 | . . 5 . 14 . 4 Fabricators . | . . . . . . . Repair Stations . | . . . . . . . Recycling Units 33 | . 5 . . 25 . 3 Scanalyzers 1 | . . . . . . 1 Garrison Access . | . . . . . . . Terminal Hacks 44 | . . . 7 27 9 1 Record 37 | . . . 4 24 9 . Part Schematic 2 | . . . . 1 . 1 Open Door 1 | . . . 1 . . . Terminal Index 1 | . . . . 1 . . Proto ID Catalog 1 | . . . 1 . . . Release Object 2 | . . . 1 1 . . Fabricator Hacks . | . . . . . . . Repair Station Hacks . | . . . . . . . Recycling Unit Hacks 6 | . 1 . . 5 . . Retrieve Components 6 | . 1 . . 5 . . Scanalyzer . | . . . . . . . Garrison Access Hacks . | . . . . . . . Unauthorized Hacks 32 | . 1 2 . 25 . 4 Terminals 11 | . . 2 . 8 . 1 Assimilate 1 | . . . . 1 . . Botnet 8 | . . 1 . 6 . 1 Operators 2 | . . 1 . 1 . . Fabricators . | . . . . . . . Repair Stations . | . . . . . . . Recycling Units 20 | . 1 . . 17 . 2 Reject 7 | . 1 . . 6 . . Recyclers 6 | . . . . 5 . 1 Mask 7 | . . . . 6 . 1 Scanalyzers 1 | . . . . . . 1 Extract 1 | . . . . . . 1 Garrison Access . | . . . . . . . Data Cores Recovered . | . . . . . . . Used . | . . . . . . . Hacking Detections 13 | . 1 1 . 8 . 3 Full Trace Events 7 | . 1 . . 4 . 2 Feedback Events 1 | . . . . . . 1 Corruption 1 | . . . . . . 1 Feedback Blocked . | . . . . . . . Robot Schematics Acquired . | . . . . . . . Robots Built . | . . . . . . . Authchips . | . . . . . . . Time . | . . . . . . . Total Robot Build Rating . | . . . . . . . Part Schematics Acquired 28 | . . . . 5 5 18 Parts Built . | . . . . . . . Authchips . | . . . . . . . Time . | . . . . . . . Total Part Build Rating . | . . . . . . . Part Studies Acquired . | . . . . . . . Parts Repaired . | . . . . . . . Time . | . . . . . . . Parts Recycled . | . . . . . . . Recycled Matter . | . . . . . . . Retrieved Matter . | . . . . . . . Retrieved Components 31 | . 9 . . 22 . . Parts Scanalyzed . | . . . . . . . Part Schematics Acquired . | . . . . . . . Parts Damaged . | . . . . . . . Bothacking | -11 -10 -10 -10 -8 -8 -6 ------------ Run | Yrd Mat Min Sub Rec Scr Fac Used RIF Installer . | . . . . . . . Robots Hacked 7 | . 6 . 1 . . . Non-combat 7 | . 6 . 1 . . . Combat . | . . . . . . . Robot Hacks Applied 8 | . 7 . 1 . . . parse_system 1 | . . . 1 . . . no_distress 7 | . 7 . . . . . Relay Couplers Released . | . . . . . . . Fabnet Peak Effective % . | . . . . . . . Robots Rewired 6 | . . . . 6 . . Allies Hacked . | . . . . . . . Hacks Repelled . | . . . . . . . Allies | -11 -10 -10 -10 -8 -8 -6 -------- Run | Yrd Mat Min Sub Rec Scr Fac Total Allies 30 | . . . 24 6 . . Largest Group 11 | . . . 11 6 6 6 Highest-Rated Group 210 | . . . 210 83 83 83 Highest-Rated Ally 34 | . . . 22 34 34 34 Total Orders . | . . . . . . . Ally Attacks 101 | . . . 48 15 . 38 Total Damage 2288 | . . . 778 763 . 747 Kills 23 | . . . 10 8 . 5 Allies Corrupted 7 | . . . 7 . . . Allies Melted . | . . . . . . . Intel | -11 -10 -10 -10 -8 -8 -6 ------- Run | Yrd Mat Min Sub Rec Scr Fac Active Infowar (turns) 2616 | . . . . . . 2616 Sensors 3 | . . . . . . 3 Machine Analysis 2616 | . . . . . . 2616 Robot Analysis Total . | . . . . . . . Derelict Logs Recovered 2 | . . . 2 . . . Drone Launches . | . . . . . . . Drone Recoveries . | . . . . . . . Exploration | -11 -10 -10 -10 -8 -8 -6 ------------- Run | Yrd Mat Min Sub Rec Scr Fac Turns Passed 16091 | 175 2059 714 7814 1478 1230 2621 Spaces Moved 7580 | 105 1150 717 3438 737 741 692 Core 60 | 23 . . . . . 37 Treads 4491 | 55 . . 2450 737 741 508 Legs . | . . . . . . . Wheels 156 | 27 129 . . . . . Hover 2873 | . 1021 717 988 . . 147 Flight . | . . . . . . . Fastest Speed 50 | 50 56 52 52 160 160 156 Average Speed 149 | 115 122 93 130 160 160 337 Slowest Speed 1750 | 160 180 116 180 160 160 1750 Overloaded Moves . | . . . . . . . Propulsion Burnouts . | . . . . . . . Robots Hopped . | . . . . . . . Potential Cave-ins . | . . . . . . . Cave-ins Triggered . | . . . . . . . Exploration Rate (%) 65 | 7 99 100 87 96 55 16 Regions Visited 6 Branch Regions 4 Pre-discovered Areas 2 | . . . 2 . . . Known Exits Taken 6 | 1 1 1 1 1 1 . Unknown Exits Taken . | . . . . . . . Scrap Searched 10 | . . . 6 . 4 . Spaces Dug . | . . . . . . . Terrain Destroyed . | . . . . . . . Melee . | . . . . . . . Projectile . | . . . . . . . AOE . | . . . . . . . Terrain Rammed . | . . . . . . . Walls Destroyed . | . . . . . . . Machines Disabled . | . . . . . . . Actions | -11 -10 -10 -10 -8 -8 -6 --------- Run | Yrd Mat Min Sub Rec Scr Fac Total 11870 | 141 1709 763 6601 1020 787 849 Wait 3757 | . 421 41 3001 222 37 35 Move 7574 | 104 1149 716 3437 736 740 692 Hop . | . . . . . . . Pick Up 82 | 14 13 1 16 11 9 18 Fast Attach 11 | 3 4 1 1 . . 2 Attach 32 | 7 3 1 4 3 . 14 Detach 12 | 2 . 1 2 4 . 3 Swap 14 | . 3 . 8 3 . . Drop 40 | 2 12 2 18 5 1 . Fire 186 | 9 90 . 16 . . 71 Melee 159 | . 13 . 98 36 . 12 Ram . | . . . . . . . Kick . | . . . . . . . Crush 2 | . . . . . . 2 Escape Stasis . | . . . . . . . Rewire . | . . . . . . . Trap 1 | . 1 . . . . . Miscellaneous . | . . . . . . . Route ------- -11/Scrapyard -10/Materials (discovered 5 exits: *Mat x3 / *Min x2) -10/Mines (discovered 4 exits: *Mat x2 / *Exi / *Sub) -10/Subcaves (discovered 4 exits: *Mat x2 / *Rec / *Scr) -8/Recycling (discovered 2 exits: *Fac / *Scr) -8/Scraptown -6/Factory History --------- Turn | Location | Event 10 | -11/Scrapyard | Identified exit to Materials 10 | -11/Scrapyard | Discovered exit to Materials (range 15) 176 | -11/Scrapyard | Entered Materials 176 | -10/Materials | Evolved 1 slot: Propulsion x1 289 | -10/Materials | Identified exit to Mines 289 | -10/Materials | Discovered exit to Mines (range 7) 313 | -10/Materials | Build established: Hacker-Mutant 1229 | -10/Materials | Identified exit to Materials 1229 | -10/Materials | Discovered exit to Materials (range 14) 1732 | -10/Materials | Discovered exit to Mines (range 10) 1745 | -10/Materials | Discovered exit to Materials (range 13) 2042 | -10/Materials | Discovered exit to Materials (range 16) 2235 | -10/Materials | Entered Mines 2240 | -10/Mines | Met a Derelict bent on vengeance 2352 | -10/Mines | Discovered exit to Materials (range 8) 2382 | -10/Mines | Identified exit to Subcaves 2382 | -10/Mines | Discovered exit to Subcaves (range 12) 2808 | -10/Mines | Found a Scrap Suit stashed away for nefarious purposes 2819 | -10/Mines | Discovered exit to Materials (range 11) 2831 | -10/Mines | Deemed a non-threat by the Exiles lab entrance 2831 | -10/Mines | Identified exit to Exiles 2831 | -10/Mines | Discovered exit to Exiles (range 5) 2861 | -10/Mines | Found Scrap Suit 2949 | -10/Mines | Entered Subcaves 2950 | -10/Subcaves | Approached by a straggling Scientist 2990 | -10/Subcaves | Visited triangular shrine 2993 | -10/Subcaves | Found Prototype Device 2993 | -10/Subcaves | Identified V3-11A's Pendant 2998 | -10/Subcaves | Befriended Subdweller 3023 | -10/Subcaves | Befriended Subdweller 3079 | -10/Subcaves | Learned location of Zion (-6) 3079 | -10/Subcaves | Met a Zionite searching for "candidates" 3398 | -10/Subcaves | Befriended Subdweller 3403 | -10/Subcaves | Befriended Subdweller 3538 | -10/Subcaves | Befriended Subdweller 3538 | -10/Subcaves | Befriended Subdweller 3611 | -10/Subcaves | Identified exit to Recycling 3611 | -10/Subcaves | Discovered exit to Recycling (range 10) 3629 | -10/Subcaves | Lost 5 allies 3679 | -10/Subcaves | Visited 4L-MR0's lab 3680 | -10/Subcaves | Core integrity fell below 50% 3683 | -10/Subcaves | Befriended Subdweller 3683 | -10/Subcaves | Befriended Subdweller 3683 | -10/Subcaves | Befriended Subdweller 3705 | -10/Subcaves | Found Tower Shield 3785 | -10/Subcaves | Shifting Twisted Machinery released Battle Cannon 3791 | -10/Subcaves | Shifting Twisted Machinery released Mak. Flight Unit 3794 | -10/Subcaves | Shifting Twisted Machinery released Sub. Machine Gun 3798 | -10/Subcaves | Shifting Twisted Machinery released Sub. Monowheel 4038 | -10/Subcaves | A swath of the cavern ceiling suddenly collapsed 4240 | -10/Subcaves | Curiously followed by a Cobbler waking with a query about "LVR3C" 4648 | -10/Subcaves | A swath of the cavern ceiling suddenly collapsed 4828 | -10/Subcaves | Befriended Subdweller 5938 | -10/Subcaves | Befriended Subdweller 5938 | -10/Subcaves | Befriended Subdweller 6061 | -10/Subcaves | Identified exit to Materials 6061 | -10/Subcaves | Discovered exit to Materials (range 7) 6147 | -10/Subcaves | Discovered exit to Materials (range 10) 6153 | -10/Subcaves | Learned Materials machine intel 6259 | -10/Subcaves | A Subdweller sparked back to life 6259 | -10/Subcaves | A Subdweller sparked back to life 6259 | -10/Subcaves | A Subdweller sparked back to life 6267 | -10/Subcaves | Befriended Subdweller 6267 | -10/Subcaves | Befriended Subdweller 6832 | -10/Subcaves | Befriended Subdweller 7177 | -10/Subcaves | Befriended Subdweller 7182 | -10/Subcaves | Befriended Subdweller 7197 | -10/Subcaves | Befriended Subdweller 7227 | -10/Subcaves | Befriended Subdweller 7227 | -10/Subcaves | Befriended Subdweller 7399 | -10/Subcaves | Visited Clippyterm 7403 | -10/Subcaves | Learned location of Section 7 (-3) 8469 | -10/Subcaves | Ambushed by angry Subdweller bent on revenge 8472 | -10/Subcaves | Befriended Subdweller 8678 | -10/Subcaves | Murdered 5 allies 8843 | -10/Subcaves | Approached by friendly Subdweller 8856 | -10/Subcaves | Murdered 6 allies 8888 | -10/Subcaves | Approached by friendly Subdweller 9277 | -10/Subcaves | Found SUBCON Basin 9308 | -10/Subcaves | Approached by friendly Subdweller 10763 | -10/Subcaves | Entered Recycling 10763 | -8/Recycling | Accompanied by 1 ally 11003 | -8/Recycling | Scanned before Scraplab entrance 11036 | -8/Recycling | Entered Scraplab 11319 | -8/Recycling | Tech Extrapolator generated special schematic: Deep Structural Scanner 11684 | -8/Recycling | Identified exit to Factory 11684 | -8/Recycling | Discovered exit to Factory (range 11) 11903 | -8/Recycling | Build established: Commander-Mutant 12187 | -8/Recycling | Identified exit to Scraptown 12187 | -8/Recycling | Discovered exit to Scraptown (range 2) 12241 | -8/Recycling | Entered Scraptown 12241 | -8/Scraptown | Accompanied by 6 allies 12358 | -8/Scraptown | Delivered V3-11A's Pendant to T0-NE2 in exchange for information 12571 | -8/Scraptown | Discovered exit to Factory (range 11) 12689 | -8/Scraptown | Visited Supply Room 12716 | -8/Scraptown | Visited Comm Corps 12758 | -8/Scraptown | Visited SPCMW 12792 | -8/Scraptown | Tech Extrapolator generated special schematic: Machine Rigger 12799 | -8/Scraptown | Visited Fellowship of the Rings 12889 | -8/Scraptown | Visited The Evicted 12899 | -8/Scraptown | Visited Symbiants 13471 | -8/Scraptown | Entered Factory 13471 | -6/Factory | Accompanied by 6 allies 13471 | -6/Factory | Evolved 8 slots: Power x1, Propulsion x1, Utility x5, Weapon x1 13476 | -6/Factory | Attached Tower Shield, gained temporary slots: Power, Propulsion x2, Utility x2, Weapon x2 14175 | -6/Factory | Lost 6 allies 14234 | -6/Factory | Lost 3 parts (1p1u1w) 14586 | -6/Factory | Build established: Hacker-Skirmisher 14682 | -6/Factory | Lost 3 parts (2n1w) 14903 | -6/Factory | Lost 3 parts (1p2n) 14937 | -6/Factory | Build established: Hacker-Mutant 15378 | -6/Factory | Cargo convoy interrupted 15441 | -6/Factory | System corruption reached 10% 16030 | -6/Factory | Core integrity fell below 50% 16076 | -6/Factory | Spotted B-75 Beast 16092 | -6/Factory | Self-destructed Last Messages --------------- 16056_ U-05 Engineer builds a Wall. 16057_ U-05 Engineer lays Concrete. 16059_ System corrupted: Heat flow error (+244). 16059_ U-05 Engineer lays Concrete. 16059_ U-05 Engineer builds a Wall. 16060_ U-05 Engineer lays Concrete. 16065_ U-05 Engineer builds a Wall. 16066_ U-05 Engineer lays Concrete. 16067_ U-05 Engineer builds a Wall. 16072_ U-05 Engineer lays Concrete. 16073_ U-05 Engineer builds a Wall. 16074_ System corrupted: Substantial component data lost. 16074_ W-25 Informer distress signal alerts nearby ally. 16080_ U-05 Engineer lays Concrete. 16081_ Scrap Suit destroyed. 16081_ U-05 Engineer lays Concrete. 16084_ Gravmag System destroyed. 16087_ Fission Core destroyed. Map ----- +----------------------------------------------------+ | ?????????????????????????????????????????????????? | | ?????????????????????????????????????????????????? | | ?????????????????????????????????????????????????? | | ?????????????????????????????????????????????????? | | ?????????????????????????????????????????????????? | | ?????????????????????????????????????????????????? | | ?????????????????????????????????????????????????? | | ?????????????????????????????????????????????????? | | ?????????????????????????????????????????????????? | | ?????????????????????????????????????????????????? | | ?????????????????????????????????????????????????? | | ?????????????????????????????????????????????????? | | ?????????????????????????????????????????????????? | | ?????????????????????????????????????????????????? | | ?????????????????????????????????????????????????? | | ?????????????????????????????????????????????????? | | ?????????????????????????????????????????????????? | | ??????????????????????????????????????????? ????? | | ?????????????????????????????????????????? ???? | | ????????????##############??????????????? !! ???? | | ????????????# #?????????????? !! ??? | | ????????????# ! ############;;; ??? | | ????????????# # ??? | | ????????????# ; ???? | | ????????????# ; p " "????? | | ????????????#^ @ w "G" ??? | | ????????????# """ # " ? | | ??????????????""F %# % ? | | ??????????????"" ! " ? | | ??????????????""" "#####+##########"" ""??? | | ??????????????""" " #???""T""??? | | ?????????????? " #????"""???? | | ??????????????##########"" #??????????? | | ???????????????????????##" #??????????? | | ???????????????????????# " #??""""????? | | ???????????????????????##" #??""""????? | | ????????????????????????#" #??""""????? | | ????????????????????????## #??""""????# | | ?????????????????????????#"" #??""""????# | | ?????????????????????????#"T #??""""????# | | ?????????????????????????#""" #??""""????# | | ?????????????????????????# #??????????# | | ?????????????????????????####+#########??????????# | | ????????????????????????????# #??????????????????# | | ???????????????????##########+###????????????????# | | ???????????????????# #????????????????# | | ???????????????????# #????????????????# | | ???????????????????# """"""" #???????????????## | | ?"""?""????????????# """"""" #??????????"""??# | | ?"""?""???"""T"""??# """"""" #??????????"""??# | +----------------------------------------------------+ Best States ------------- Heat Dissipation 37 Energy Generation 27 Energy Capacity 405 Matter Stores 300 Matter Capacity 300 Sight Range 16 Robot Scan Range 15 Terrain Scan Density 10 Armor Coverage 2000 Resistance: KI 35 Resistance: TH 35 Resistance: EX 35 Resistance: EM 35 Resistance: I 35 Resistance: S 35 Resistance: P 35 Core Shielding 20 Evasion (%) 54 Recoil Reduction 4 Offensive Hacking 20 Authchip Count 2 Item Schematics ----------------- Deep Structural Scanner | -8/Recycling | Extrapolated Mak. Leg | -8/Recycling | Extrapolated Mak. Light Armor Plating | -8/Recycling | Extrapolated Barrage Gun | -8/Recycling | Extrapolated Gauss Cannon | -8/Recycling | Hacked Mak. Coolant Network | -8/Scraptown | Extrapolated Mak. Medium Armor Plating | -8/Scraptown | Extrapolated Spk. Treads | -8/Scraptown | Extrapolated Mak. Ablative Armor | -8/Scraptown | Extrapolated Machine Rigger | -8/Scraptown | Extrapolated Spk. Medium Treads | -6/Factory | Extrapolated Dynamic Insulation System | -6/Factory | Extracted Microactuators | -6/Factory | Extracted Adv. Sensor Array | -6/Factory | Extracted Hvy. Ion Cannon | -6/Factory | Extracted Energy Filter | -6/Factory | Extracted Greatsword | -6/Factory | Extracted Mak. Flight Unit | -6/Factory | Extrapolated Mak. Power Source | -6/Factory | Extrapolated Mak. Hover Unit | -6/Factory | Extrapolated Multitool | -6/Factory | Extrapolated 0b10 Decoder Chip [Generic] | -6/Factory | Extrapolated 0b10 Decoder Chip [Scout] | -6/Factory | Extrapolated 0b10 Decoder Chip [Skirmisher] | -6/Factory | Extrapolated Mak. Laser | -6/Factory | Extrapolated Beamcaster | -6/Factory | Extrapolated Mak. Shrapnel Gun | -6/Factory | Extrapolated Ionic Axe | -6/Factory | Hacked Robot Schematics ------------------ None Fabricated ------------ Nothing Repaired ---------- Nothing Studied --------- None Alien Tech Used ----------------- None Achievements -------------- Fishing Tech Challenges ------------ None Game ------ Seed ThrowingSiegeFlightbrick Manual? 0 Play Time 01:06:23 Cumulative 154.3 hours Start 2025.12.02 @ 12:17:36 End 2025.12.02 @ 13:36:38 Sessions 1 Manual Loads 0 Difficulty Explorer Special Mode None Game No. 193 Rogue 0 Adventurer 0 Explorer 193 Win Type - Total 0 Types 0/0/0/0/0/0/0/0/0/0 Lore% 70 Gallery% 66 Achievement% 52 Wizard Run 0 Options --------- Layout 1 ASCII 0 Keyboard 0 Movement Mouse Keybinds 0 Fullscreen 1 Font 24/Smallcaps Map View 50x35 Zoom Use 0% Tactical HUD 1 Map Filters NONE Filters NONE Steam 1 RUN: 3e918907-9f80-4edd-81da-0224aff89f6f